fUST/lending_fUST_20240901
["ID","MTS","AMOUNT","RATE_DAILY","PERIOD"]
[336839171,1725204642929,-1874.65,0.00024657,2]
[336839172,1725204642939,-500.0,0.00024657,2]
[336839174,1725204642948,-500.0,0.00024657,2]
[336839175,1725204642958,-500.0,0.00024657,2]
[336839176,1725204642967,-721.74,0.00024657,2]
[336839177,1725204642976,-500.0,0.00024657,2]
[336839178,1725204642986,-500.0,0.00024657,2]
[336839179,1725204642995,-500.0,0.00024657,2]
[336839180,1725204643005,-500.0,0.00024657,2]
[336839182,1725204643014,-500.0,0.00024657,2]
[336839184,1725204643024,-500.0,0.00024657,2]
[336839186,1725204643033,-500.0,0.00024657,2]
[336839188,1725204643042,-2444.77,0.00024657,2]
[336839190,1725204643051,-500.0,0.00024657,2]
[336839191,1725204643061,-500.0,0.00024657,2]
[336839197,1725204643206,-500.0,0.00024657,2]
[336839198,1725204643216,-500.0,0.00024657,2]
[336839199,1725204643226,-1346.22,0.00024657,2]
[336839201,1725204643235,-622.91,0.00024657,2]
[336839203,1725204643244,-500.0,0.00024657,2]
[336839205,1725204643254,-652.23,0.00024657,2]
[336839206,1725204643263,-500.0,0.00024657,2]
[336839208,1725204643273,-634.41,0.00024657,2]
[336839210,1725204643283,-923.521888,0.00024657,7]
[336839211,1725204643293,-6144.71,0.00024657,2]
[336839212,1725204643303,-485.92556822,0.00024657,2]
[336839213,1725204643312,-923.521888,0.00024657,7]
[336839214,1725204643321,-6144.71,0.00024657,2]
[336839215,1725204643331,-6144.71,0.00024657,2]
[336839216,1725204643341,-6144.71,0.00024657,2]
[336839217,1725204643350,-6144.71,0.00024657,2]
[336839218,1725204643359,-6144.71,0.00024657,2]
[336839219,1725204643369,-6144.71,0.00024657,2]
[336839221,1725204643378,-500.0,0.00024657,2]
[336839223,1725204643387,-500.0,0.00024657,2]
[336839224,1725204643397,-6144.71,0.00024657,2]
[336839225,1725204643407,-500.0,0.00024657,2]
[336839226,1725204643416,-6144.71,0.00024657,2]
[336839227,1725204643426,-6144.71,0.00024657,2]
[336839228,1725204643435,-6144.71,0.00024657,2]
[336839229,1725204643444,-627.84,0.00024657,2]
[336839230,1725204643453,-500.0,0.00024657,2]
[336839232,1725204643463,-923.521888,0.00024657,7]
[336839233,1725204643472,-923.521888,0.00024657,7]
[336839234,1725204643482,-500.0,0.00024657,2]
[336839235,1725204643491,-500.0,0.00024657,2]
[336839236,1725204643500,-1861.08,0.00024657,2]
[336839237,1725204643513,-173.751696,0.00024657,2]
[336839238,1725204643523,-2697.45,0.00024657,2]
[336839239,1725204643533,-2739.83,0.00024657,2]
[336839240,1725204643542,-500.0,0.00024657,2]
[336839241,1725204643552,-1121.81,0.00024657,2]
[336839242,1725204643561,-567.57,0.00024657,2]
[336839243,1725204643571,-500.0,0.00024657,2]
[336839244,1725204643580,-1470.72,0.00024657,2]
[336839245,1725204643590,-553.31,0.00024657,2]
[336839246,1725204643600,-500.0,0.00024657,2]
[336839247,1725204643610,-500.0,0.00024657,2]
[336839248,1725204643620,-506.790149,0.00024657,2]
[336839249,1725204643630,-2146.11,0.00024657,2]
[336839250,1725204643639,-500.0,0.00024657,2]
[336839251,1725204643649,-502.93525691,0.00024657,2]
[336839252,1725204643658,-500.0,0.00024657,2]
[336839253,1725204643672,-504.13032995,0.00024657,2]
[336839254,1725204643691,-500.0,0.00024657,2]
[336839255,1725204643711,-500.0,0.00024657,2]
[336839256,1725204643733,-500.0,0.00024657,2]
[336839257,1725204643756,-924.5,0.00024657,2]
[336839258,1725204643779,-2790.9,0.00024657,2]
[336839259,1725204643802,-907.14,0.00024657,2]
[336839260,1725204643824,-1767.46,0.00024657,2]
[336839261,1725204643843,-500.0,0.00024657,2]
[336839262,1725204643852,-500.0,0.00024657,2]
[336839263,1725204643861,-500.0,0.00024657,2]
[336839264,1725204643871,-745.2,0.00024657,2]
[336839265,1725204643880,-500.0,0.00024657,2]
[336839266,1725204643890,-500.0,0.00024657,2]
[336839267,1725204643899,-519.76,0.00024657,2]
[336839268,1725204643908,-2496.1,0.00024657,2]
[336839269,1725204643918,-503.01,0.00024657,2]
[336839270,1725204643927,-500.0,0.00024657,2]
[336839271,1725204643936,-500.0,0.00024657,2]
[336839272,1725204643945,-625.02,0.00024657,2]
[336839273,1725204643955,-3850.21,0.00024657,2]
[336839274,1725204643965,-500.0,0.00024657,2]
[336839275,1725204643974,-500.0,0.00024657,2]
[336839276,1725204643983,-500.0,0.00024657,2]
[336839277,1725204643992,-324.27186465,0.00024657,2]
[336839278,1725204644001,-500.0,0.00024657,2]
[336839279,1725204644010,-13456.36,0.00024657,2]
[336839280,1725204644020,-536.3871627,0.00024657,2]
[336839281,1725204644031,-500.0,0.00024657,2]
[336839282,1725204644040,-608.23,0.00024657,2]
[336839283,1725204644050,-500.0,0.00024657,2]
[336839284,1725204644059,-3074.21,0.00024657,2]
[336839285,1725204644068,-848.77,0.00024657,2]
[336839286,1725204644077,-500.0,0.00024657,2]
[336839287,1725204644087,-500.0,0.00024657,2]
[336839288,1725204644096,-1190.77,0.00024657,2]
[336839289,1725204644105,-2424.55,0.00024657,2]
[336839290,1725204644114,-500.0,0.00024657,2]
[336839291,1725204644124,-500.0,0.00024657,2]
[336839292,1725204644133,-1068.74,0.00024657,2]
[336839293,1725204644142,-500.0,0.00024657,2]
[336839294,1725204644151,-3950.221816,0.00024657,2]
[336839295,1725204644161,-500.0,0.00024657,2]
[336839296,1725204644170,-2596.07,0.00024657,2]
[336839297,1725204644180,-500.0,0.00024657,2]
[336839298,1725204644189,-3098.55,0.00024657,2]
[336839299,1725204644198,-509.6084453,0.00024657,2]
[336839300,1725204644207,-500.0,0.00024657,2]
[336839301,1725204644218,-500.0,0.00024657,2]
[336839302,1725204644228,-841.45,0.00024657,2]
[336839303,1725204644237,-507.52296583,0.00024657,2]
[336839304,1725204644247,-1653.81,0.00024657,2]
[336839305,1725204644257,-500.0,0.00024657,2]
[336839306,1725204644267,-500.0,0.00024657,2]
[336839307,1725204644277,-500.0,0.00024657,2]
[336839308,1725204644287,-500.0,0.00024657,2]
[336839309,1725204644296,-500.0,0.00024657,2]
[336839310,1725204644306,-500.0,0.00024657,2]
[336839311,1725204644315,-500.0,0.00024657,2]
[336839312,1725204644326,-500.0,0.00024657,2]
[336839313,1725204644336,-500.0,0.00024657,2]
[336839314,1725204644347,-500.0,0.00024657,2]
[336839315,1725204644356,-2493.49,0.00024657,2]
[336839316,1725204644365,-4059.99,0.00024657,2]
[336839317,1725204644374,-788.97,0.00024657,2]
[336839318,1725204644383,-500.89430039,0.00024657,2]
[336839319,1725204644393,-500.0,0.00024657,2]
[336839320,1725204644402,-500.0,0.00024657,2]
[336839321,1725204644411,-500.0,0.00024657,2]
[336839322,1725204644421,-500.0,0.00024657,2]
[336839323,1725204644431,-866.1,0.00024657,2]
[336839324,1725204644440,-1394.73,0.00024657,2]
[336839325,1725204644450,-500.0,0.00024657,2]
[336839326,1725204644459,-577.7,0.00024657,2]
[336839327,1725204644468,-500.0,0.00024657,2]
[336839328,1725204644478,-500.0,0.00024657,2]
[336839329,1725204644488,-500.0,0.00024657,2]
[336839330,1725204644497,-500.0,0.00024657,2]
[336839331,1725204644510,-956.01,0.00024657,2]
[336839332,1725204644519,-500.0,0.00024657,2]
[336839333,1725204644530,-2232.08,0.00024657,2]
[336839334,1725204644539,-2076.76,0.00024657,2]
[336839335,1725204644549,-500.0,0.00024657,2]
[336839336,1725204644559,-500.0,0.00024657,2]
[336839337,1725204644568,-1058.05,0.00024657,2]
[336839338,1725204644577,-500.0,0.00024657,2]
[336839339,1725204644588,-2470.28,0.00024657,2]
[336839340,1725204644597,-500.0,0.00024657,2]
[336839341,1725204644607,-627.05,0.00024657,2]
[336839342,1725204644616,-500.0,0.00024657,2]
[336839343,1725204644625,-500.0,0.00024657,2]
[336839344,1725204644635,-848.54,0.00024657,2]
[336839345,1725204644644,-643.36,0.00024657,2]
[336839346,1725204644654,-500.0,0.00024657,2]
[336839347,1725204644663,-500.0,0.00024657,2]
[336839348,1725204644672,-500.0,0.00024657,2]
[336839349,1725204644682,-500.0,0.00024657,2]
[336839350,1725204644691,-2155.78,0.00024657,2]
[336839351,1725204644700,-1568.19,0.00024657,2]
[336839352,1725204644710,-500.0,0.00024657,2]
[336839353,1725204644719,-500.0,0.00024657,2]
[336839354,1725204644729,-500.0,0.00024657,2]
[336839355,1725204644738,-500.0,0.00024657,2]
[336839356,1725204644748,-2685.7,0.00024657,2]
[336839357,1725204644757,-500.0,0.00024657,2]
[336839358,1725204644767,-628.27,0.00024657,2]
[336839359,1725204644779,-500.0,0.00024657,2]
[336839360,1725204644788,-1173.45,0.00024657,2]
[336839361,1725204644797,-500.0,0.00024657,2]
[336839362,1725204644807,-500.0,0.00024657,2]
[336839363,1725204644816,-520.52677227,0.00024657,2]
[336839364,1725204644825,-2403.89,0.00024657,2]
[336839365,1725204644835,-501.9649524,0.00024657,2]
[336839366,1725204644844,-500.0,0.00024657,2]
[336839367,1725204644853,-500.0,0.00024657,2]
[336839368,1725204644863,-955.24,0.00024657,2]
[336839369,1725204644872,-1782.79,0.00024657,2]
[336839370,1725204644881,-2274.61,0.00024657,2]
[336839371,1725204644890,-500.0,0.00024657,2]
[336839372,1725204644900,-500.0,0.00024657,2]
[336839373,1725204644909,-934.12,0.00024657,2]
[336839374,1725204644918,-631.99752632,0.00024657,2]
[336839375,1725204644928,-503.96557598,0.00024657,2]
[336839376,1725204644938,-500.0,0.00024657,2]
[336839377,1725204644947,-3740.25,0.00024657,2]
[336839378,1725204644957,-1288.8,0.00024657,2]
[336839379,1725204644966,-500.0,0.00024657,2]
[336839380,1725204644976,-11713.76,0.00024657,2]
[336839381,1725204644985,-500.0,0.00024657,2]
[336839382,1725204644994,-500.0,0.00024657,2]
[336839383,1725204645003,-500.0,0.00024657,2]
[336839384,1725204645012,-500.0,0.00024657,2]
[336839385,1725204645021,-2148.59,0.00024657,2]
[336839386,1725204645032,-1954.16,0.00024657,2]
[336839387,1725204645042,-2111.84,0.00024657,2]
[336839388,1725204645051,-500.0,0.00024657,2]
[336839389,1725204645060,-500.0,0.00024657,2]
[336839390,1725204645069,-500.0,0.00024657,2]
[336839391,1725204645079,-500.0,0.00024657,2]
[336839392,1725204645088,-308.55597742,0.00024657,2]
[336839393,1725204645097,-500.0,0.00024657,2]
[336839394,1725204645107,-500.0,0.00024657,2]
[336839395,1725204645116,-500.0,0.00024657,2]
[336839396,1725204645125,-500.0,0.00024657,2]
[336839397,1725204645134,-510.82703953,0.00024657,2]
[336839398,1725204645143,-2359.77,0.00024657,2]
[336839399,1725204645153,-500.0,0.00024657,2]
[336839400,1725204645162,-500.0,0.00024657,2]
[336839401,1725204645172,-500.0,0.00024657,2]
[336839402,1725204645181,-500.0,0.00024657,2]
[336839403,1725204645190,-722.36,0.00024657,2]
[336839404,1725204645200,-500.0,0.00024657,2]
[336839405,1725204645209,-500.0,0.00024657,2]
[336839406,1725204645219,-500.0,0.00024657,2]
[336839407,1725204645228,-1912.48,0.00024657,2]
[336839408,1725204645237,-4383.47,0.00024657,2]
[336839409,1725204645246,-500.0,0.00024657,2]
[336839410,1725204645255,-333.24026108,0.00024657,2]
[336839411,1725204645266,-500.0,0.00024657,2]
[336839412,1725204645277,-501.28949647,0.00024657,2]
[336839413,1725204645287,-500.0,0.00024657,2]
[336839414,1725204645297,-500.0,0.00024657,2]
[336839415,1725204645306,-6843.6,0.00024657,2]
[336839416,1725204645317,-500.0,0.00024657,2]
[336839417,1725204645326,-2624.32,0.00024657,2]
[336839418,1725204645336,-500.0,0.00024657,2]
[336839419,1725204645346,-500.0,0.00024657,2]
[336839420,1725204645356,-2507.54,0.00024657,2]
[336839421,1725204645365,-500.0,0.00024657,2]
[336839422,1725204645375,-2291.73,0.00024657,2]
[336839423,1725204645385,-1197.76,0.00024657,2]
[336839424,1725204645395,-500.0,0.00024657,2]
[336839425,1725204645405,-500.0,0.00024657,2]
[336839426,1725204645415,-614.992229,0.00024658,7]
[336839427,1725204645424,-614.992229,0.00024658,7]
[336839428,1725204645434,-614.992229,0.00024658,7]
[336839429,1725204645443,-614.992229,0.00024658,7]
[336839430,1725204645453,-380.0,0.00024658,2]
[336839431,1725204645463,-190.34396407,0.00024658,2]
[336839432,1725204645474,-158.50944575,0.00024673,2]
[336839433,1725204645483,-1000.0,0.000247,2]
[336839434,1725204645493,-150.112233,0.000248,4]
[336839435,1725204645503,-6144.71,0.00024865,2]
[336839437,1725204645515,-4559.65643826,0.00024876,2]
[336839438,1725204645524,-150.112233,0.000249,2]
[336839439,1725204645535,-150.112233,0.000249,5]
[336839440,1725204645545,-6416.26133225,0.00024919,3]
[336839441,1725204645555,-6144.71,0.0002492,2]
[336839442,1725204645566,-500.0,0.0002492,2]
[336839443,1725204645575,-6416.26133225,0.0002492,3]
[336839444,1725204645585,-32081.3066613,0.00024921,3]
[336839445,1725204645595,-151.0,0.00024921,7]
[336839446,1725204645604,-151.0,0.00024921,7]
[336839447,1725204645614,-923.521888,0.00024929,7]
[336839448,1725204645624,-6144.71,0.00024929,2]
[336839449,1725204645633,-6144.71,0.00024929,2]
[336839450,1725204645642,-923.521888,0.00024929,7]
[336839451,1725204645653,-614.992229,0.00024929,7]
[336839452,1725204645663,-614.992229,0.00024929,7]
[336839453,1725204645673,-500.0,0.00024929,2]
[336839454,1725204645683,-500.0,0.00024929,2]
[336839455,1725204645693,-151.0,0.0002493,7]
[336839456,1725204645703,-151.0,0.0002493,7]
[336839457,1725204645712,-151.0,0.0002493,7]
[336839458,1725204645722,-500.0,0.0002493,2]
[336839459,1725204645731,-500.0,0.0002493,2]
[336839460,1725204645741,-500.0,0.0002493,2]
[336839461,1725204645751,-500.0,0.0002493,2]
[336839462,1725204645760,-500.0,0.0002493,2]
[336839463,1725204645770,-500.0,0.0002493,2]
[336839464,1725204645780,-500.0,0.0002493,2]
[336839465,1725204645789,-6144.71,0.0002493,2]
[336839466,1725204645798,-6144.71,0.0002493,2]
[336839467,1725204645809,-6144.71,0.0002493,2]
[336839468,1725204645818,-6144.71,0.0002493,2]
[336839469,1725204645828,-6144.71,0.0002493,2]
[336839470,1725204645957,-6144.71,0.0002493,2]
[336839471,1725204645968,-6144.71,0.0002493,2]
[336839472,1725204645978,-6144.71,0.0002493,2]
[336839473,1725204645989,-6144.80687213,0.0002493,2]
[336839474,1725204645999,-500.0,0.0002493,2]
[336839475,1725204646010,-267.43,0.0002493,2]
[336839476,1725204646022,-151.0,0.00024931,7]
[336839477,1725204646033,-500.0,0.00024931,2]
[336839478,1725204646042,-500.0,0.00024931,2]
[336839479,1725204646053,-500.0,0.00024931,2]
[336839481,1725204646062,-500.0,0.00024931,2]
[336839482,1725204646072,-500.0,0.00024931,2]
[336839483,1725204646081,-500.0,0.00024931,2]
[336839484,1725204646091,-500.0,0.00024931,2]
[336839485,1725204646100,-500.0,0.00024931,2]
[336839486,1725204646110,-565.48646795,0.00024931,2]
[336839488,1725204646120,-500.0,0.00024931,2]
[336839490,1725204646129,-768.56,0.00024931,2]
[336839492,1725204646138,-500.0,0.00024931,2]
[336839493,1725204646149,-500.0,0.00024931,2]
[336839494,1725204646159,-500.0,0.00024931,2]
[336839495,1725204646169,-500.0,0.00024931,2]
[336839496,1725204646178,-500.0,0.00024931,2]
[336839497,1725204646188,-500.0,0.00024931,2]
[336839498,1725204646197,-500.0,0.00024931,2]
[336839499,1725204646206,-500.0,0.00024931,2]
[336839500,1725204646215,-500.0,0.00024931,2]
[336839501,1725204646224,-500.0,0.00024931,2]
[336839502,1725204646234,-500.0,0.00024931,2]
[336839503,1725204646243,-500.0,0.00024931,2]
[336839504,1725204646252,-500.0,0.00024931,2]
[336839505,1725204646262,-500.0,0.00024931,2]
[336839506,1725204646272,-500.0,0.00024931,2]
[336839507,1725204646281,-500.0,0.00024931,2]
[336839508,1725204646291,-500.0,0.00024931,2]
[336839509,1725204646300,-500.0,0.00024931,2]
[336839510,1725204646310,-500.0,0.00024931,2]
[336839511,1725204646319,-500.0,0.00024931,2]
[336839512,1725204646328,-500.0,0.00024931,2]
[336839513,1725204646338,-500.0,0.00024931,2]
[336839514,1725204646347,-500.0,0.00024931,2]
[336839515,1725204646356,-661.67,0.00024931,2]
[336839516,1725204646365,-503.37685167,0.00024931,2]
[336839517,1725204646375,-500.0,0.00024931,2]
[336839518,1725204646384,-503.68315282,0.00024931,2]
[336839519,1725204646393,-500.0,0.00024931,2]
[336839520,1725204646403,-947.27,0.00024931,2]
[336839521,1725204646412,-500.0,0.00024931,2]
[336839522,1725204646422,-500.0,0.00024931,2]
[336839523,1725204646431,-895.08,0.00024931,2]
[336839524,1725204646440,-500.0,0.00024931,2]
[336839525,1725204646451,-500.0,0.00024931,2]
[336839526,1725204646460,-500.0,0.00024931,2]
[336839527,1725204646469,-500.0,0.00024931,2]
[336839528,1725204646479,-500.0,0.00024931,2]
[336839529,1725204646488,-702.49,0.00024931,2]
[336839530,1725204646497,-751.75,0.00024931,2]
[336839531,1725204646510,-502.63088586,0.00024931,2]
[336839532,1725204646519,-500.0,0.00024931,2]
[336839533,1725204646528,-500.0,0.00024931,2]
[336839534,1725204646538,-500.0,0.00024931,2]
[336839535,1725204646547,-500.0,0.00024931,2]
[336839536,1725204646558,-500.0,0.00024931,2]
[336839537,1725204646567,-500.0,0.00024931,2]
[336839538,1725204646576,-574.5,0.00024931,2]
[336839539,1725204646587,-503.05168924,0.00024931,2]
[336839541,1725204646596,-500.0,0.00024931,2]
[336839543,1725204646606,-200.0,0.00024931,2]
[336839546,1725204646616,-500.0,0.00024931,2]
[336839549,1725204646625,-500.0,0.00024931,2]
[336839552,1725204646634,-507.1311536,0.00024931,2]
[336839555,1725204646644,-500.0,0.00024931,2]
[336839557,1725204646654,-500.0,0.00024931,2]
[336839559,1725204646663,-500.0,0.00024931,2]
[336839561,1725204646673,-500.0,0.00024931,2]
[336839563,1725204646682,-500.0,0.00024931,2]
[336839565,1725204646691,-500.0,0.00024931,2]
[336839567,1725204646701,-500.0,0.00024931,2]
[336839570,1725204646711,-415.0712568,0.00024931,2]
[336839573,1725204646720,-500.0,0.00024931,2]
[336839575,1725204646730,-500.0,0.00024931,2]
[336839577,1725204646739,-1191.54,0.00024931,2]
[336839580,1725204646748,-500.0,0.00024931,2]
[336839582,1725204646757,-500.0,0.00024931,2]
[336839585,1725204646766,-500.0,0.00024931,2]
[336839587,1725204646775,-1141.27,0.00024931,2]
[336839589,1725204646784,-500.0,0.00024931,2]
[336839591,1725204646793,-526.83,0.00024931,2]
[336839594,1725204646802,-500.0,0.00024931,2]
[336839596,1725204646811,-500.0,0.00024931,2]
[336839598,1725204646820,-504.79594028,0.00024931,2]
[336839601,1725204646831,-500.0,0.00024931,2]
[336839603,1725204646840,-933.68,0.00024931,2]
[336839604,1725204646849,-504.72649526,0.00024931,2]
[336839606,1725204646859,-500.0,0.00024931,2]
[336839608,1725204646868,-500.0,0.00024931,2]
[336839609,1725204646878,-500.0,0.00024931,2]
[336839611,1725204646887,-658.11,0.00024931,2]
[336839612,1725204646897,-500.0,0.00024931,2]
[336839613,1725204646907,-1469.27,0.00024931,2]
[336839614,1725204646916,-500.0,0.00024931,2]
[336839616,1725204646926,-151.0,0.00024931,7]
[336839617,1725204646935,-151.0,0.00024931,7]
[336839619,1725204646945,-587.5167475,0.00024931,2]
[336839621,1725204646954,-500.0,0.00024931,2]
[336839622,1725204646963,-151.0,0.00024931,7]
[336839623,1725204646972,-151.0,0.00024931,7]
[336839624,1725204646982,-647.07,0.00024931,2]
[336839625,1725204646991,-502.13,0.00024931,2]
[336839626,1725204647001,-500.0,0.00024931,2]
[336839627,1725204647011,-500.0,0.00024931,2]
[336839628,1725204647020,-500.0,0.00024931,2]
[336839629,1725204647030,-553.47,0.00024931,2]
[336839630,1725204647040,-500.0,0.00024931,2]
[336839631,1725204647050,-500.0,0.00024931,2]
[336839632,1725204647060,-500.0,0.00024931,2]
[336839633,1725204647069,-500.0,0.00024931,2]
[336839634,1725204647078,-500.0,0.00024931,2]
[336839635,1725204647087,-500.0,0.00024931,2]
[336839636,1725204647096,-5689.21,0.00024931,2]
[336839637,1725204647105,-500.0,0.00024931,2]
[336839638,1725204647114,-500.0,0.00024931,2]
[336839639,1725204647127,-508.30466131,0.00024931,2]
[336839640,1725204647136,-500.0,0.00024931,2]
[336839641,1725204647146,-500.0,0.00024931,2]
[336839642,1725204647156,-500.0,0.00024931,2]
[336839643,1725204647165,-500.0,0.00024931,2]
[336839644,1725204647174,-151.0,0.00024931,7]
[336839645,1725204647183,-151.0,0.00024931,7]
[336839646,1725204647193,-500.0,0.00024931,2]
[336839647,1725204647202,-1056.51,0.00024931,2]
[336839648,1725204647214,-500.0,0.00024931,2]
[336839649,1725204647225,-500.0,0.00024931,2]
[336839650,1725204647235,-500.0,0.00024931,2]
[336839651,1725204647247,-500.0,0.00024931,2]
[336839652,1725204647258,-500.0,0.00024931,2]
[336839653,1725204647269,-500.0,0.00024931,2]
[336839654,1725204647278,-1604.86,0.00024931,2]
[336839655,1725204647288,-762.08427716,0.00024931,2]
[336839656,1725204647407,-67.88572284,0.00024931,2]
[336839657,1725204647417,-500.0,0.00024931,2]
[336839658,1725204647427,-500.0,0.00024931,2]
[336839659,1725204647436,-53.85479101,0.00024931,2]
[336839660,1725204647449,-446.14520899,0.00024931,2]
[336839661,1725204647459,-548.11719636,0.00024931,2]
[336839662,1725204647468,-248.0527219,0.00024931,2]
[336839663,1725204647693,-500.0,0.00024657,2]
[336839664,1725204647703,-251.9472781,0.00024931,2]
[336839665,1725204647713,-501.813284,0.00024931,2]
[336839666,1725204647722,-500.0,0.00024931,2]
[336839667,1725204647731,-500.0,0.00024931,2]
[336839668,1725204647740,-550.28,0.00024931,2]
[336839669,1725204647750,-500.0,0.00024931,2]
[336839670,1725204647759,-500.0,0.00024931,2]
[336839671,1725204647769,-500.0,0.00024931,2]
[336839672,1725204647778,-432.13686531,0.00024931,2]
[336839673,1725204647787,-500.0,0.00024931,2]
[336839674,1725204647797,-449.62172856,0.00024931,2]
[336839675,1725204647807,-500.0,0.00024931,2]
[336839676,1725204647816,-500.0,0.00024931,2]
[336839677,1725204647825,-588.53,0.00024931,2]
[336839678,1725204647834,-500.0,0.00024931,2]
[336839679,1725204647843,-500.0,0.00024931,2]
[336839680,1725204647853,-907.18,0.00024931,2]
[336839681,1725204647862,-500.0,0.00024931,2]
[336839682,1725204647872,-500.0,0.00024931,2]
[336839683,1725204647881,-500.0,0.00024931,2]
[336839684,1725204647890,-500.0,0.00024931,2]
[336839685,1725204647899,-500.0,0.00024931,2]
[336839686,1725204647909,-500.0,0.00024931,2]
[336839687,1725204647918,-500.0,0.00024931,2]
[336839688,1725204647927,-500.0,0.00024931,2]
[336839689,1725204647936,-500.0,0.00024931,2]
[336839690,1725204647945,-1011.69,0.00024931,2]
[336839691,1725204647954,-500.0,0.00024931,2]
[336839692,1725204647964,-500.0,0.00024931,2]
[336839693,1725204647973,-420.25974606,0.00024931,2]
[336839694,1725204647982,-269.24649168,0.00024931,2]
[336839695,1725204647991,-500.0,0.00024931,2]
[336839696,1725204648001,-500.0,0.00024931,2]
[336839697,1725204648010,-500.0,0.00024931,2]
[336839698,1725204648020,-500.0,0.00024931,2]
[336839699,1725204648031,-835.78,0.00024931,2]
[336839700,1725204648047,-500.0,0.00024931,2]
[336839701,1725204648057,-524.37575311,0.00024931,2]
[336839702,1725204648067,-500.0,0.00024931,2]
[336839703,1725204648076,-500.0,0.00024931,2]
[336839704,1725204648086,-693.24,0.00024931,2]
[336839705,1725204648095,-500.0,0.00024931,2]
[336839706,1725204648104,-537.407645,0.00024931,2]
[336839707,1725204648114,-500.0,0.00024931,2]
[336839708,1725204648126,-500.0,0.00024931,2]
[336839709,1725204648135,-500.0,0.00024931,2]
[336839710,1725204648144,-500.0,0.00024931,2]
[336839711,1725204648154,-742.91,0.00024931,2]
[336839712,1725204648164,-500.0,0.00024931,2]
[336839713,1725204648173,-748.92,0.00024931,2]
[336839714,1725204648183,-500.0,0.00024931,2]
[336839715,1725204648192,-637.09,0.00024931,2]
[336839716,1725204648201,-500.0,0.00024931,2]
[336839717,1725204648211,-500.0,0.00024931,2]
[336839718,1725204648220,-809.06,0.00024931,2]
[336839719,1725204648229,-500.0,0.00024931,2]
[336839720,1725204648239,-802.78,0.00024931,2]
[336839721,1725204648249,-500.0,0.00024931,2]
[336839722,1725204648258,-503.7723864,0.00024931,2]
[336839723,1725204648269,-417.32387967,0.00024931,2]
[336839724,1725204648279,-500.0,0.00024931,2]
[336839725,1725204648291,-500.0,0.00024931,2]
[336839726,1725204648301,-500.0,0.00024931,2]
[336839727,1725204648311,-500.0,0.00024931,2]
[336839728,1725204648437,-1413.25,0.00024931,2]
[336839729,1725204648447,-500.0,0.00024931,2]
[336839730,1725204648457,-500.0,0.00024931,2]
[336839731,1725204648467,-500.0,0.00024931,2]
[336839732,1725204648476,-639.11,0.00024931,2]
[336839733,1725204648487,-500.0,0.00024931,2]
[336839734,1725204648497,-500.0,0.00024931,2]
[336839735,1725204648510,-1783.89,0.00024931,2]
[336839736,1725204648520,-646.64,0.00024931,2]
[336839737,1725204648530,-500.0,0.00024931,2]